Cogmind - Beta 12 @@@ ROGUE MODE // 2023.05.16 @ 08:20:17 Player: Mr Goldstein Result: Self-destructed Performance ------------- Evolutions (2) 1000 Regions Visited (5) 1000 Robots Destroyed (4) 20 Value Destroyed (36) 36 Prototype IDs (0) 0 Alien Tech Used (0) 0 Bonus (270) 270 TOTAL SCORE: 2326 Bonus ------- Pacifist 270 Cogmind --------- Core Integrity 8/550 Matter 269/300 Energy 99/100 System Corruption 0% Temperature Cool (0) Movement Core (50) Location -8/Materials Parts ------- > --- POWER (1) -------- (None) > --- PROPULSION (2) --- (None) > --- UTILITY (6) ------ (None) > --- WEAPON (2) ------- (None) > --- INVENTORY (5) ---- Rocket Launcher Peak State ------------ > --- POWER ------------ (None) > --- PROPULSION ------- (None) > --- UTILITY ---------- (None) > --- WEAPON ----------- Rocket Launcher > --- INVENTORY -------- (None) [Rating: 2] Favorites ----------- Power None Propulsion None Utility None Weapon Rocket Launcher Launcher Rocket Launcher Build | -11 -10 -10 -10 -9 -8 ------- Run | Jun Mat Min Exi Min Mat Slots Evolved 4 | . . . . . 4 Power . | . . . . . . Propulsion . | . . . . . . Utility 4 | . . . . . 4 Weapon . | . . . . . . Parts Attached 1 | . . . . . 1 Power . | . . . . . . Engine . | . . . . . . Core . | . . . . . . Reactor . | . . . . . . Propulsion . | . . . . . . Treads . | . . . . . . Leg . | . . . . . . Wheel . | . . . . . . Hover . | . . . . . . Flight . | . . . . . . Utility . | . . . . . . Device . | . . . . . . Storage . | . . . . . . Processor . | . . . . . . Hackware . | . . . . . . Protection . | . . . . . . Artifact . | . . . . . . Weapon 1 | . . . . . 1 Energy Gun . | . . . . . . Energy Cannon . | . . . . . . Ballistic Gun . | . . . . . . Ballistic Cannon . | . . . . . . Launcher 1 | . . . . . 1 Special Weapon . | . . . . . . Impact Weapon . | . . . . . . Slashing Weapon . | . . . . . . Piercing Weapon . | . . . . . . Special Melee Weapon . | . . . . . . Unidentified Prototypes . | . . . . . . Parts Lost . | . . . . . . Power . | . . . . . . Propulsion . | . . . . . . Utility . | . . . . . . Weapon . | . . . . . . Highest Loss Streak . | . . . . . . To Critical Strikes . | . . . . . . Average Slot Usage (%) . | . . . . . 1 Naked Turns 260 | . 47 35 14 96 68 Heaviest Build . | . . . . . . Greatest Support 3 | 3 3 3 3 3 3 Greatest Overweight (x) . | . . . . . . Average Overweight (x) . | . . . . . . Largest Inventory Capacity 5 | 5 5 5 5 5 5 Average Capacity 5 | 5 5 5 5 5 5 Most Carried 1 | . . . . 1 1 Average Carried . | . . . . . . Final Capacity 5 | 5 5 5 5 5 5 Final Carried 1 | . . . . 1 1 Class Distribution -------------------- 100% | Mutant Dominant Class ---------------- Mutant | -10/Materials Mutant | -10/Mines Mutant | -10/Exiles Mutant | -9/Mines Mutant | -8/Materials Resources | -11 -10 -10 -10 -9 -8 ----------- Run | Jun Mat Min Exi Min Mat Matter Collected 212 | 182 . . . . 30 Remotely . | . . . . . . Salvage Created 77 | . . . . . 77 Parts 11 | . . . . . 11 Haulers Intercepted . | . . . . . . Recyclers Shooed . | . . . . . . Parts Field Recycled . | . . . . . . Retrieved Matter . | . . . . . . Parts Self-Destructed . | . . . . . . Prevented . | . . . . . . Kills | -11 -10 -10 -10 -9 -8 ------- Run | Jun Mat Min Exi Min Mat Combat Hostiles Destroyed 3 | . . . . . 3 AOE 3 | . . . . . 3 Classes Destroyed 2 | . . . . . 2 Recycler 1 | . . . . . 1 Swarmer 3 | . . . . . 3 Best Kill Streak 4 | . . . . . 4 Combat Bots Only 3 | . . . . . 3 Max Kills in Single Turn 2 | . . . . . 2 Gunslinging . | . . . . . . Exploded 1 | . . . . . 1 Melee . | . . . . . . Uniques/NPCs Destroyed . | . . . . . . Combat | -11 -10 -10 -10 -9 -8 -------- Run | Jun Mat Min Exi Min Mat Damage Taken 710 | 1 80 13 . 13 603 Core 649 | 1 80 13 . 13 542 Absorbed by Shields . | . . . . . . Core Remaining (%) 78 | 99 . . . 57 . Volleys Fired 4 | . . . . . 4 Largest 1 | . . . . . 1 Hottest 33 | . . . . . 33 Shots Fired 4 | . . . . . 4 Gun . | . . . . . . Cannon . | . . . . . . Launcher 4 | . . . . . 4 Special . | . . . . . . Kinetic . | . . . . . . Thermal . | . . . . . . Explosive 4 | . . . . . 4 Electromagnetic . | . . . . . . Robot Hit Streak 1 | . . . . . 1 Robot Miss Streak 2 | . . . . . 2 Penetration Max . | . . . . . . Secondary Targets . | . . . . . . Shots Hit Robots 1 | . . . . . 1 Core Hits 5 | . . . . . 5 Critical Kills . | . . . . . . Critical Parts Destroyed . | . . . . . . Critical Strikes . | . . . . . . Melee Attacks . | . . . . . . Impact . | . . . . . . Slashing . | . . . . . . Piercing . | . . . . . . Sneak Attacks . | . . . . . . Combat Hostiles . | . . . . . . Follow-up Attacks . | . . . . . . Damage Inflicted 224 | 3 . . . 4 217 Guns . | . . . . . . Cannons . | . . . . . . Explosions 215 | . . . . . 215 Melee . | . . . . . . Ramming 9 | 3 . . . 4 2 Kinetic . | . . . . . . Thermal . | . . . . . . Explosive 215 | . . . . . 215 Electromagnetic . | . . . . . . Impact . | . . . . . . Slashing . | . . . . . . Piercing . | . . . . . . Highest Corruption . | . . . . . . Average Corruption . | . . . . . . Corruption Purged . | . . . . . . Corruption Blocked . | . . . . . . Overload Shots . | . . . . . . Overflow Damage . | . . . . . . Projectiles . | . . . . . . Explosions . | . . . . . . Melee . | . . . . . . Knockbacks . | . . . . . . Impact . | . . . . . . Kinetic . | . . . . . . Secondary . | . . . . . . Self-Inflicted Damage 52 | 1 . . . 2 49 Shots 1 | . . . . . 1 Rammed 3 | 1 . . . 1 1 Targets Rammed 3 | 1 . . . 1 1 Kicked . | . . . . . . Crushed . | . . . . . . Highest Temperature 1 | . . . . . 1 Average Temperature 1 | . . . . . 1 Received Heat Transfer 105 | . 45 . . 6 54 Siege Activations . | . . . . . . Robots Corrupted . | . . . . . . Combat Hostiles . | . . . . . . Parts Fried . | . . . . . . Impact Corruptions . | . . . . . . Robots Melted . | . . . . . . Combat Hostiles . | . . . . . . Parts Melted . | . . . . . . Heat Transferred . | . . . . . . Parts Sabotaged . | . . . . . . Parts Stolen . | . . . . . . Parts Stripped . | . . . . . . Power Chain Reactions . | . . . . . . Missiles Intercepted . | . . . . . . Alert | -11 -10 -10 -10 -9 -8 ------- Run | Jun Mat Min Exi Min Mat Peak Influence 169 | . 45 32 . 15 169 Initial 17 | . . 17 . . 5 Average 36 | . 28 24 . 14 79 Maximum Alert Level . | . . . . . . Low Security (%) 100 | 100 100 100 . 100 100 Level 1 . | . . . . . . Level 2 . | . . . . . . Level 3 . | . . . . . . Level 4 . | . . . . . . Level 5 . | . . . . . . High Security . | . . . . . . Max Security . | . . . . . . Squads Dispatched 4 | . 2 . . . 2 Investigation . | . . . . . . Extermination . | . . . . . . Reinforcement 4 | . 2 . . . 2 Assault . | . . . . . . Garrison . | . . . . . . Intercept . | . . . . . . Searches Triggered . | . . . . . . Construction Impeded . | . . . . . . Haulers Reinforced . | . . . . . . Active Scanning Responses . | . . . . . . Cargo Convoy Interrupts . | . . . . . . Stealth | -11 -10 -10 -10 -9 -8 --------- Run | Jun Mat Min Exi Min Mat Distress Signals . | . . . . . . Communications Jammed . | . . . . . . Distress Signals . | . . . . . . Times Spotted 35 | . 5 4 . 5 21 Peak Tracking Total 12 | . 4 5 . 3 12 Tactical Retreats 1 | . . . . . 1 Traps | -11 -10 -10 -10 -9 -8 ------- Run | Jun Mat Min Exi Min Mat Traps Triggered . | . . . . . . Indirectly . | . . . . . . Trap Hack Attempts . | . . . . . . Triggered . | . . . . . . Disarmed . | . . . . . . Reprogrammed . | . . . . . . Reused . | . . . . . . Traps Extracted . | . . . . . . Installed . | . . . . . . Triggered . | . . . . . . Machines | -11 -10 -10 -10 -9 -8 ---------- Run | Jun Mat Min Exi Min Mat Machines Disabled . | . . . . . . Max in Single Turn . | . . . . . . Machines Repaired . | . . . . . . Machines Sabotaged . | . . . . . . Overloaded Fab Kills . | . . . . . . Hacking | -11 -10 -10 -10 -9 -8 --------- Run | Jun Mat Min Exi Min Mat Machines Accessed . | . . . . . . Terminals . | . . . . . . Fabricators . | . . . . . . Repair Stations . | . . . . . . Recycling Units . | . . . . . . Scanalyzers . | . . . . . . Garrison Access . | . . . . . . Total Hacks . | . . . . . . Successful . | . . . . . . Failed . | . . . . . . Catastrophic . | . . . . . . Database Lockouts . | . . . . . . Manual . | . . . . . . Terminals . | . . . . . . Fabricators . | . . . . . . Repair Stations . | . . . . . . Recycling Units . | . . . . . . Scanalyzers . | . . . . . . Garrison Access . | . . . . . . Terminal Hacks . | . . . . . . Fabricator Hacks . | . . . . . . Repair Station Hacks . | . . . . . . Recycling Unit Hacks . | . . . . . . Scanalyzer . | . . . . . . Garrison Access Hacks . | . . . . . . Unauthorized Hacks . | . . . . . . Terminals . | . . . . . . Fabricators . | . . . . . . Repair Stations . | . . . . . . Recycling Units . | . . . . . . Scanalyzers . | . . . . . . Garrison Access . | . . . . . . Data Cores Recovered . | . . . . . . Used . | . . . . . . Hacking Detections . | . . . . . . Full Trace Events . | . . . . . . Feedback Events . | . . . . . . Feedback Blocked . | . . . . . . Robot Schematics Acquired . | . . . . . . Robots Built . | . . . . . . Authchips . | . . . . . . Time . | . . . . . . Total Robot Build Rating . | . . . . . . Part Schematics Acquired . | . . . . . . Parts Built . | . . . . . . Authchips . | . . . . . . Time . | . . . . . . Total Part Build Rating . | . . . . . . Parts Repaired . | . . . . . . Time . | . . . . . . Parts Recycled . | . . . . . . Recycled Matter . | . . . . . . Retrieved Matter . | . . . . . . Retrieved Components . | . . . . . . Parts Scanalyzed . | . . . . . . Part Schematics Acquired . | . . . . . . Parts Damaged . | . . . . . . Bothacking | -11 -10 -10 -10 -9 -8 ------------ Run | Jun Mat Min Exi Min Mat Used RIF Installer . | . . . . . . Robots Hacked . | . . . . . . Non-combat . | . . . . . . Combat . | . . . . . . Robot Hacks Applied . | . . . . . . Relay Couplers Released . | . . . . . . Fabnet Peak Effective % . | . . . . . . Robots Rewired . | . . . . . . Allies Hacked . | . . . . . . Hacks Repelled . | . . . . . . Allies | -11 -10 -10 -10 -9 -8 -------- Run | Jun Mat Min Exi Min Mat Total Allies . | . . . . . . Largest Group . | . . . . . . Highest-Rated Group . | . . . . . . Highest-Rated Ally . | . . . . . . Total Orders . | . . . . . . Ally Attacks . | . . . . . . Total Damage . | . . . . . . Kills . | . . . . . . Allies Corrupted . | . . . . . . Allies Melted . | . . . . . . Intel | -11 -10 -10 -10 -9 -8 ------- Run | Jun Mat Min Exi Min Mat Robot Analysis Total . | . . . . . . Derelict Logs Recovered 1 | . . . . 1 . Drone Launches . | . . . . . . Drone Recoveries . | . . . . . . Exploration | -11 -10 -10 -10 -9 -8 ------------- Run | Jun Mat Min Exi Min Mat Turns Passed 280 | 12 47 35 14 96 76 Spaces Moved 531 | 22 94 70 28 187 130 Core 531 | 22 94 70 28 187 130 Treads . | . . . . . . Legs . | . . . . . . Wheels . | . . . . . . Hover . | . . . . . . Flight . | . . . . . . Fastest Speed 50 | 50 50 50 50 50 50 Average Speed 50 | 50 50 50 50 50 50 Slowest Speed 50 | 50 50 50 50 50 50 Overloaded Moves . | . . . . . . Propulsion Burnouts . | . . . . . . Robots Hopped . | . . . . . . Cave-ins Triggered . | . . . . . . Exploration Rate (%) 29 | 3 37 30 8 79 22 Regions Visited 5 Branch Regions 3 Pre-discovered Areas 1 | . . . . 1 . Known Exits Taken . | . . . . . . Unknown Exits Taken 5 | 1 1 1 1 1 . Scrap Searched 1 | . . . . 1 . Spaces Dug 8 | . . . . . 8 Terrain Destroyed 29 | . . . . . 29 Melee . | . . . . . . Projectile . | . . . . . . AOE 29 | . . . . . 29 Terrain Rammed . | . . . . . . Walls Destroyed . | . . . . . . Machines Disabled . | . . . . . . Actions | -11 -10 -10 -10 -9 -8 --------- Run | Jun Mat Min Exi Min Mat Total 536 | 22 93 69 27 188 137 Wait . | . . . . . . Move 526 | 21 93 69 27 186 130 Hop . | . . . . . . Pick Up 1 | . . . . 1 . Fast Attach . | . . . . . . Attach 1 | . . . . . 1 Detach 1 | . . . . . 1 Swap . | . . . . . . Drop . | . . . . . . Fire 4 | . . . . . 4 Melee . | . . . . . . Ram 3 | 1 . . . 1 1 Kick . | . . . . . . Crush . | . . . . . . Escape Stasis . | . . . . . . Rewire . | . . . . . . Trap . | . . . . . . Miscellaneous . | . . . . . . Route ------- -11/Junkyard -10/Materials -10/Mines -10/Exiles -9/Mines -8/Materials History --------- Turn | Location | Event 3 | -11/Junkyard | Discovered new exit (range 15) 13 | -11/Junkyard | Entered Materials 57 | -10/Materials | Discovered new exit (range 8) 60 | -10/Materials | Entered Mines 73 | -10/Mines | Assembled infested the area 93 | -10/Mines | Deemed a non-threat by the Exiles lab entrance 93 | -10/Mines | Discovered new exit (range 5) 95 | -10/Mines | Entered Exiles 102 | -10/Exiles | Discovered new exit (range 15) 109 | -10/Exiles | Entered Mines 110 | -9/Mines | Joined a pair of Derelicts in attacking an 0b10 outpost 133 | -9/Mines | Learned location of Recycling (-7) 166 | -9/Mines | Received a Rocket Launcher from a helpful Derelict 198 | -9/Mines | Discovered new exit (range 9) 205 | -9/Mines | Entered Materials 205 | -8/Materials | Evolved 4 slots: Utility x4 259 | -8/Materials | Core integrity fell below 50% 268 | -8/Materials | Core integrity fell below 20% 281 | -8/Materials | Self-destructed Last Messages --------------- M010. 00233_ S-10 Pest destroyed. 00247_ ALERT: Suspicious intruders detected, dispatching Cutter reinforcements to area. 00251_ Knocked back. 00256_ Penetrated by Slug. 00256_ Acquired 1 matter. 00257_ Slammed into C-17 Slicer. 00258_ Knocked back. 00258_ C-17 Slicer system corrupted by crushing effect. 00261_ K-01 Serf collects debris. 00261_ Knocked back. 00261_ T-07 Excavator destroyed. 00261_ C-17 Slicer knocked back. 00261_ K-01 Serf destroyed. 00261_ Knocked back. 00261_ U-05 Engineer destroyed. 00262_ G-47 Trooper destroyed. 00263_ Acquired 29 matter. 00268_ U-05 Engineer lays Concrete. Map ----- +----------------------------------------------------+ | ?????????????????????+ =""" #??####### | | ?????????????????????######## """ #????????? | | ????????????????????????????## ==## #####????????? | | ???????????????####+#####????# =%!###????????????? | | ???????????????# #????# ##??????????????? | | ???????????????# #????# #???????????????? | | ???????????????# #????# #???????????????? | | ???????????????# ! #????# #???????????????? | | ???????????????# * #????# #???????????????? | | ???????????????# #????# ########????????? | | ???????????????# #????# #????????? | | ???????????????# ###### #????????? | | ???????????????# ! / ^ #????????? | | ???????????????#####/##########/##### #????????? | | ???????????????????# #????????? ?????? #????????? | | ???????????????????# #????????????????? #????????? | | ???????????????????# #??????????????????#????????? | | ???????????????????# #???????????????????????????? | | ???????????????????# #???????????????????????????? | | ???????????????????# #???????????????????????????? | | ???????????????????# #???????????????????????????? | | ???????????????????# #???????????????????????????? | | ???????????????????# #??#######??????????????????? | | ???????????????????# #??# ####### #????????? | | ?????????????##+#+##c#### s s ????????? | | ?????? s @ Y s ????????? | | ?????????????####+####### ????????? | | ????????????????????????# ########???????????? | | ????????????????????????###+###??????????????????? | | ?????????????????????????????????????????????????? | | ?????????????????????????????????????????????????? | | ?????????????????????????????????????????????????? | | ?????????????????????????????????????????????????? | | ?????????????????????????????????????????????????? | | ?????????????????????????????????????????????????? | | ?????????????????????????????????????????????????? | | ?????????????????????????????????????????????????? | | ?????????????????????????????????????????????????? | | | | | | | | | | | | | | | | | | | | | | | | | +----------------------------------------------------+ Best States ------------- Heat Dissipation 31 Energy Generation 5 Energy Capacity 100 Matter Stores 291 Matter Capacity 300 Sight Range 16 Terrain Scan Density 10 Evasion (%) 50 Item Schematics ----------------- None Robot Schematics ------------------ None Fabricated ------------ Nothing Alien Tech Used ----------------- None Achievements -------------- None Challenges ------------ None Game ------ Seed TiamatProtonMagmablaster Manual? 0 Play Time 00:03:38 Cumulative 216.7 hours Start 2023.05.16 @ 08:17:38 End 2023.05.16 @ 08:20:17 Sessions 1 Manual Loads 0 Difficulty Rogue Special Mode None Game No. 654 Rogue 654 Adventurer 0 Explorer 0 Win Type - Total 9 Types 7/0/1/1/0/0/0/0/0 Lore% 82 Gallery% 80 Achievement% 71 Wizard Run 0 Options --------- ASCII 0 Keyboard 0 Movement Numpad Keybinds 0 Fullscreen 1 Font 16/SmallcapsGlow Map View 75x55 Tactical HUD 1 Map Filters NONE Filters NONE Steam 1 RUN: de443250-4358-4b9e-922c-2c50fd6a9e99